bitfinex/quotes_SOLUSD_20250718
["timestamp","ask_amount","ask_price","bid_price","bid_amount"]
[1752865751305,0.72,176.82,176.79,0.06]
[1752865751624,0.72,176.81,176.79,0.06]
[1752865751802,12.51677837,176.81,176.79,0.06]
[1752865752006,0.72,176.8,176.79,0.06]
[1752865752219,12.51677837,176.8,176.79,0.06]
[1752865752522,6.37610859,176.8,176.79,0.06]
[1752865753516,89.7,176.84,176.79,11.85677837]
[1752865753707,6.37514901,176.83,176.8,11.79677837]
[1752865754025,0.72,176.82,176.81,11.79677837]
[1752865754522,89.7,176.84,176.81,11.79677837]
[1752865754731,6.9396,176.85,176.82,11.79677837]
[1752865755483,6.9396,176.85,176.83,11.79677837]
[1752865756110,0.67,176.88,176.84,11.79677837]
[1752865756300,43.78988474,176.9,176.86,11.79677837]
[1752865756501,12.00988474,176.9,176.86,11.79677837]
[1752865756715,12.46677837,176.89,176.82,31.78]
[1752865756914,12.46677837,176.88,176.83,11.79677837]
[1752865757129,0.67,176.87,176.8,5.65603039]
[1752865757343,11.79677837,176.86,176.82,11.79677837]
[1752865757518,0.67,176.85,176.82,11.79677837]
[1752865757913,0.67,176.85,176.83,11.79677837]
[1752865758315,0.67,176.88,176.83,11.79677837]
[1752865758526,0.67,176.87,176.85,11.79677837]
[1752865758703,0.67,176.86,176.83,11.79677837]
[1752865758918,0.67,176.85,176.79,31.84]
[1752865759239,0.67,176.85,176.81,11.79677837]
[1752865759623,12.46677837,176.85,176.8,11.79677837]
[1752865759946,0.67,176.84,176.8,11.79677837]
[1752865760134,0.67,176.83,176.8,11.79677837]
[1752865760737,0.67,176.82,176.79,11.85677837]
[1752865761036,0.67,176.82,176.79,0.06]
[1752865761037,11.79677837,176.8,176.79,0.06]
[1752865761237,12.46677837,176.8,176.79,0.06]
[1752865761840,0.67,176.8,176.79,0.06]
[1752865762023,12.46677837,176.8,176.79,0.06]
[1752865762721,18.12288696,176.8,176.79,0.06]
[1752865763340,6.32610859,176.8,176.79,0.06]
[1752865763542,32.26315845,176.8,176.74,8.87607537]
[1752865763717,31.59315845,176.8,176.74,8.87607537]
[1752865763917,0.67,176.79,176.74,8.87607537]
[1752865764231,5.65610859,176.8,176.76,11.79677837]
[1752865764625,5.65610859,176.8,176.77,11.79677837]
[1752865764930,6.32610859,176.8,176.76,11.79677837]
[1752865765232,5.65585223,176.81,176.79,11.79677837]
[1752865766238,5.65585223,176.81,176.75,0.71]
[1752865766541,5.65546883,176.82,176.79,11.79677837]
[1752865766945,6.32546883,176.82,176.79,11.79677837]
[1752865767146,6.32546883,176.82,176.75,0.71]
[1752865767441,6.32546883,176.82,176.79,11.79677837]
[1752865767849,6.32546883,176.82,176.75,0.71]
[1752865767850,5.65546883,176.82,176.8,11.79677837]
[1752865768746,19.79224599,176.84,176.8,11.79677837]
[1752865768955,5.65455334,176.85,176.83,11.79677837]
[1752865769138,14.13504908,176.87,176.8,0.71]
[1752865769139,5.65387007,176.87,176.84,11.79677837]
[1752865769333,5.65387007,176.87,176.86,11.79677837]
[1752865769827,12.46677837,176.87,176.77,0.71]
[1752865770030,14.13307705,176.89,176.8,11.79677837]
[1752865770031,0.67,176.86,176.8,11.79677837]
[1752865770235,12.46677837,176.86,176.77,0.71]
[1752865770428,12.46677837,176.86,176.81,11.79677837]
[1752865770629,5.65482922,176.84,176.81,11.79677837]
[1752865770845,0.67,176.83,176.8,11.79677837]
[1752865771223,0.67,176.82,176.79,11.79677837]
[1752865771539,0.67,176.81,176.79,11.79677837]
[1752865772039,19.79190228,176.84,176.78,11.79677837]
[1752865772218,5.65482922,176.84,176.81,11.79677837]
[1752865773352,5.65450947,176.85,176.81,11.79677837]
[1752865774059,5.6542804,176.86,176.83,11.79677837]
[1752865774368,6.32323082,176.89,176.85,11.79677837]
[1752865774527,5.65323082,176.89,176.86,11.79677837]
[1752865774949,11.97095947,176.9,176.87,11.79677837]
[1752865775161,5.65295947,176.9,176.87,11.79677837]
[1752865775476,5.65295947,176.9,176.86,11.79677837]
[1752865776055,6.32295947,176.9,176.86,11.79677837]
[1752865776859,0.67,176.93,176.89,11.79677837]
[1752865777156,12.46677837,176.92,176.87,11.79677837]
[1752865777331,5.65259171,176.91,176.87,11.79677837]
[1752865777646,5.65259171,176.91,176.89,11.79677837]
[1752865777849,5.65195274,176.93,176.89,11.79677837]
[1752865778029,5.65195274,176.93,176.9,11.79677837]
[1752865778438,5.65195274,176.93,176.89,11.79677837]
[1752865778650,11.77810072,176.94,176.9,11.79677837]
[1752865778828,12.46677837,176.95,176.9,11.79677837]
[1752865778829,5.6513736,176.95,176.92,11.79677837]
[1752865779022,5.6513736,176.95,176.93,11.79677837]
[1752865779263,5.65097193,176.97,176.94,11.79677837]
[1752865779422,5.65097193,176.97,176.9,0.71]
[1752865779759,7.198,176.98,176.95,11.79677837]
[1752865779760,5.6504228,176.98,176.95,11.79677837]
[1752865780333,5.65011668,176.99,176.96,11.79677837]
[1752865781326,5.65099457,176.96,176.86,0.71]
[1752865781525,11.79677837,176.92,176.87,11.79677837]
[1752865781738,0.67,176.95,176.91,11.79677837]
[1752865781939,5.65070738,176.97,176.94,11.79677837]
[1752865782141,5.65070738,176.97,176.95,11.79677837]
[1752865782366,34.54675584,176.99,176.96,11.79677837]
[1752865782681,0.67,176.99,176.95,11.79677837]
[1752865783055,0.67,176.99,176.96,11.79677837]
[1752865783452,5.64999963,177.0,176.96,11.79677837]
[1752865783695,5.64999963,177.0,176.93,5.65170322]
[1752865783696,5.64999963,177.0,176.92,6.36223785]
[1752865783976,0.67,176.99,176.96,11.79677837]
[1752865784538,5.64999963,177.0,176.96,11.79677837]
[1752865784737,6.31999963,177.0,176.97,11.79677837]
[1752865785159,6.31999963,177.0,176.92,6.36223785]
[1752865785344,6.31999963,177.0,176.97,11.79677837]
[1752865785964,5.64999963,177.0,176.97,11.79677837]
[1752865786184,0.72,176.99,176.89,31.76]
[1752865786474,89.7,176.98,176.93,11.79677837]
[1752865786648,89.7,176.97,176.93,11.79677837]
[1752865786843,89.7,176.97,176.9,0.68]
[1752865787043,89.7,176.97,176.94,11.79677837]
[1752865787269,89.7,176.97,176.96,11.79677837]
[1752865788181,96.07072485,176.97,176.92,26.0]
[1752865788374,0.72,176.96,176.94,11.79677837]
[1752865788547,0.72,176.96,176.93,11.79677837]
[1752865789243,89.7,176.97,176.95,11.79677837]
[1752865789449,89.7,176.97,176.96,11.79677837]
[1752865790279,0.06,177.01,176.96,12.47677837]
[1752865790576,0.06,177.01,177.0,11.79677837]
[1752865790750,89.76,177.01,177.0,11.79677837]
[1752865793570,0.06,177.01,177.0,11.79677837]
[1752865795054,0.06,177.01,177.0,12.47677837]
[1752865795458,0.06,177.01,177.0,11.79677837]
[1752865796747,0.06,177.01,177.0,12.47677837]
[1752865797366,0.06,177.01,177.0,18.12649588]
[1752865797875,0.06,177.01,177.0,49.82649588]
[1752865798771,0.06,177.01,177.0,38.02971751]
[1752865798962,0.06,177.01,177.0,49.82649588]
[1752865799979,0.06,177.01,176.99,5.64995613]
[1752865800177,0.06,177.01,176.99,32.38]
[1752865800380,0.72,177.0,176.98,11.79677837]
[1752865800579,0.72,176.99,176.97,11.79677837]
[1752865800763,12.51677837,176.98,176.9,5.65282245]
[1752865800958,11.79677837,176.98,176.93,11.79677837]
[1752865801274,6.1841,176.99,176.91,31.7]
[1752865801275,12.51677837,176.97,176.92,11.79677837]
[1752865801465,11.79677837,176.97,176.92,11.79677837]
[1752865801667,0.72,176.96,176.92,11.79677837]
[1752865801873,0.72,177.0,176.95,11.79677837]
[1752865802177,0.06,177.01,176.99,11.79677837]
[1752865802375,0.06,177.01,176.96,0.68]
[1752865802570,0.06,177.01,177.0,11.79677837]
[1752865802774,0.06,177.01,176.96,0.68]
[1752865803075,0.06,177.01,177.0,11.79677837]
[1752865803579,0.2,177.05,177.03,26.0]
[1752865803758,0.2,177.05,177.04,17.4452194]
[1752865803957,0.2,177.05,177.04,18.1252194]
[1752865804567,0.2,177.07,177.06,26.0]
[1752865804785,0.2,177.07,177.06,37.79677837]
[1752865805078,0.2,177.07,177.06,55.26146234]
[1752865805581,0.2,177.07,177.06,43.46468397]
[1752865805760,0.2,177.07,177.06,55.26146234]
[1752865805957,0.2,177.07,177.06,49.11248697]
[1752865806269,0.2,177.07,177.06,60.90926534]
[1752865806657,0.2,177.07,177.06,92.58926534]
[1752865806853,0.2,177.07,177.06,69.47677837]
[1752865807181,0.2,177.07,177.06,43.45677837]
[1752865808084,0.2,177.07,177.06,60.92146234]
[1752865808285,0.2,177.07,177.06,66.56926534]
[1752865810779,0.06,177.09,177.06,34.90926534]
[1752865811086,0.06,177.09,177.08,37.79677837]
[1752865811470,0.06,177.09,177.08,70.13677837]
[1752865811982,0.06,177.09,177.08,75.78394349]
[1752865812564,0.06,177.09,177.08,75.10394349]
[1752865812765,0.06,177.09,177.08,69.45677837]
[1752865812964,0.06,177.09,177.08,75.10394349]
[1752865813178,0.06,177.09,177.08,75.78394349]
[1752865813392,0.06,177.09,177.08,63.98716512]
[1752865813686,0.06,177.09,177.08,92.56862746]
[1752865813861,0.06,177.13,177.12,26.0]
[1752865814064,0.06,177.13,177.12,75.08266816]
[1752865814762,0.06,177.13,177.12,75.76266816]
[1752865815267,0.06,177.13,177.12,92.54735213]
[1752865815968,0.06,177.13,177.12,91.86735213]
[1752865816572,0.06,177.13,177.12,92.54735213]
[1752865817166,0.06,177.13,177.12,69.43677837]
[1752865817387,0.06,177.13,177.12,31.64]
[1752865817891,12.52677837,177.13,177.12,31.64]
[1752865818067,5.64588979,177.12,177.06,17.44449608]
[1752865818261,11.79677837,177.09,177.04,17.44509171]
[1752865818466,12.46677837,177.08,177.05,31.64]
[1752865818696,0.67,177.08,177.06,31.64]
[1752865819285,0.67,177.07,177.06,31.64]
[1752865819690,0.67,177.11,177.06,31.64]
[1752865819982,11.79677837,177.09,177.06,31.64]
[1752865820179,12.46677837,177.09,177.06,31.64]
[1752865820480,0.67,177.08,177.06,31.64]
[1752865820991,17.44365277,177.09,177.04,11.79677837]
[1752865820992,12.46677837,177.07,177.04,31.62]
[1752865821184,11.79677837,177.05,177.04,31.62]
[1752865821399,11.79677837,177.05,177.02,0.03]
[1752865821400,12.46677837,177.05,177.02,0.03]
[1752865821717,11.79677837,177.03,177.02,0.03]
[1752865822097,18.11553846,177.03,177.02,0.03]
[1752865822490,11.79677837,177.05,177.02,0.03]
[1752865822684,0.67,177.06,177.02,0.03]
[1752865822884,6.31754665,177.07,177.03,11.79677837]
[1752865823310,12.46677837,177.06,177.02,0.03]
[1752865823508,11.79677837,177.03,177.02,0.03]
[1752865823886,12.46677837,177.03,177.02,0.03]
[1752865824111,18.11553846,177.03,177.02,0.03]
[1752865824891,0.67,177.03,177.02,0.03]
[1752865826397,6.31876009,177.03,177.02,0.03]
[1752865826793,18.11553846,177.03,177.02,0.03]
[1752865827415,6.31876009,177.03,177.02,0.03]
[1752865827615,0.67,177.06,177.02,11.82677837]
[1752865827826,0.67,177.08,177.05,11.79677837]
[1752865828115,6.4168,177.09,177.07,11.79677837]
[1752865828433,0.67,177.1,177.08,11.79677837]
[1752865829022,0.67,177.1,177.06,31.62]
[1752865829222,0.67,177.1,177.07,11.79677837]
[1752865829518,5.64628012,177.11,177.06,43.41677837]
[1752865829519,0.67,177.09,177.06,43.41677837]
[1752865829714,17.44305849,177.11,177.06,43.41677837]
[1752865829927,0.67,177.08,177.06,43.41677837]
[1752865830620,6.31718319,177.08,177.06,43.41677837]
[1752865830820,0.67,177.07,177.06,43.41677837]
[1752865831032,5.64690356,177.09,177.06,43.41677837]
[1752865831185,6.31690356,177.09,177.07,11.79677837]
[1752865832390,0.67,177.08,177.06,31.62]
[1752865832690,0.67,177.07,177.05,11.79677837]
[1752865833014,5.64690356,177.09,177.06,11.79677837]
[1752865833218,5.64690356,177.09,177.07,11.79677837]
[1752865833406,0.67,177.08,177.05,11.79677837]
[1752865833930,0.67,177.07,177.05,11.79677837]
[1752865834108,0.67,177.07,177.06,11.79677837]
[1752865834316,90.37,177.11,177.06,11.79677837]
[1752865834510,0.67,177.1,177.07,11.79677837]
[1752865834713,11.79677837,177.09,177.05,11.79677837]
[1752865834916,0.67,177.08,177.05,11.79677837]
[1752865835227,19.76102462,177.12,177.02,0.03]
[1752865835228,11.79677837,177.06,177.02,0.03]
[1752865835534,11.79677837,177.04,177.02,0.03]
[1752865835724,11.79677837,177.03,177.02,0.03]
[1752865835934,19.06487837,177.03,177.02,0.03]
[1752865836303,24.71363846,177.03,177.02,0.03]
[1752865836925,5.64853458,177.04,177.02,0.03]
[1752865837236,0.67,177.06,177.03,11.79677837]
[1752865837447,0.67,177.06,177.05,11.79677837]
[1752865837602,6.5981,177.07,177.05,11.79677837]
[1752865837798,6.5981,177.07,177.06,11.79677837]
[1752865838067,6.31692611,177.09,177.06,11.79677837]
[1752865838231,6.31692611,177.09,177.07,11.79677837]
[1752865838431,6.995,177.12,177.08,11.79677837]
[1752865838724,5.64629763,177.11,177.09,11.79677837]
[1752865838939,0.67,177.1,177.06,31.6]
[1752865839137,0.67,177.1,177.03,0.68]
[1752865839138,11.79677837,177.09,177.03,31.6]
[1752865839309,11.79677837,177.09,177.05,11.79677837]
[1752865839504,0.67,177.08,177.05,11.79677837]
[1752865839835,0.67,177.07,177.03,43.39677837]
[1752865840133,0.67,177.07,177.04,11.79677837]
[1752865840503,5.647803,177.06,177.04,11.79677837]
[1752865840822,6.317803,177.06,177.04,11.79677837]
[1752865841122,0.67,177.05,177.02,0.03]
[1752865841333,90.37,177.05,177.02,0.03]
[1752865841539,89.7,177.05,177.02,11.82677837]
[1752865841712,89.7,177.05,177.03,11.79677837]
[1752865841925,5.64754908,177.07,177.04,11.79677837]
[1752865842107,5.64754908,177.07,177.05,11.79677837]
[1752865842620,5.64716512,177.08,177.05,11.79677837]
[1752865843211,6.31716512,177.08,177.05,11.79677837]
[1752865843551,0.67,177.07,177.05,11.79677837]
[1752865843726,0.67,177.07,177.04,11.82677837]
[1752865844243,0.67,177.06,177.04,0.03]
[1752865844716,5.64777361,177.07,177.04,0.03]
[1752865844917,5.64777361,177.07,177.05,11.79677837]
[1752865845642,90.43,177.09,177.04,0.03]
[1752865845643,96.07694149,177.09,177.06,11.79677837]
[1752865846628,5.64748404,177.07,177.05,11.79677837]
[1752865846825,6.30748404,177.07,177.05,11.79677837]
[1752865847821,0.66,177.06,177.04,0.03]
[1752865848134,0.66,177.06,177.04,11.82677837]
[1752865848332,6.30716512,177.08,177.04,11.82677837]
[1752865848541,0.66,177.07,177.04,11.82677837]
[1752865848727,0.66,177.07,177.04,0.03]
[1752865848728,11.79677837,177.05,177.04,0.03]
[1752865849445,12.45677837,177.05,177.04,0.03]
[1752865849952,18.10490036,177.05,177.04,0.03]
[1752865850552,6.30812199,177.05,177.04,0.03]
[1752865851118,18.10490036,177.05,177.04,0.03]
[1752865851840,6.30812199,177.05,177.04,0.03]
[1752865852345,5.64812199,177.05,177.04,0.03]
[1752865852817,6.30812199,177.05,177.04,0.03]
[1752865853350,18.10490036,177.05,177.04,0.03]
[1752865853840,49.66490036,177.05,177.04,1e-08]
[1752865854621,57.31550036,177.05,177.0,0.03]
[1752865854946,37.79677837,177.01,177.0,1e-08]
[1752865855251,69.35677837,177.01,176.98,0.03]
[1752865855423,0.66,177.0,176.98,0.03]
[1752865855620,12.45677837,177.0,176.98,0.03]
[1752865855844,12.45677837,176.99,176.98,0.03]
[1752865856148,18.10681509,176.99,176.98,0.03]
[1752865856725,6.31003672,176.99,176.98,0.03]
[1752865856934,18.10681509,176.99,176.98,0.03]
[1752865858057,49.64681509,176.99,176.98,0.03]
[1752865859351,18.10681509,176.99,176.98,0.03]
[1752865859549,49.64681509,176.99,176.98,0.03]
[1752865860268,6.31003672,176.99,176.98,0.03]
[1752865860956,18.10681509,176.99,176.98,0.03]
[1752865861162,26.0,177.03,176.98,0.03]
[1752865861338,26.0,177.03,176.98,11.82677837]
[1752865861339,96.0090792,177.02,176.98,11.82677837]
[1752865862147,96.0090792,177.02,176.99,11.79677837]
[1752865862359,5.6490792,177.02,177.0,11.79677837]
[1752865862734,6.0529,177.05,177.01,11.79677837]
[1752865862973,5.64821752,177.05,177.03,11.79677837]
[1752865863146,5.64821752,177.05,177.02,11.79677837]
[1752865863356,5.64716512,177.08,177.04,11.79677837]
[1752865863734,5.64716512,177.08,177.05,11.79677837]
[1752865863956,0.06,177.09,177.06,11.79677837]
[1752865864161,0.06,177.09,177.08,11.79677837]
[1752865865570,0.06,177.09,177.08,12.47677837]
[1752865865753,0.06,177.09,177.08,34.90862746]
[1752865866462,0.06,177.09,177.08,46.70540583]
[1752865866844,0.06,177.09,177.08,66.42862746]
[1752865867455,0.06,177.09,177.08,78.22540583]
[1752865867657,0.06,177.13,177.09,16.78468397]
[1752865867867,0.06,177.13,177.12,28.58146234]
[1752865868099,0.06,177.13,177.12,60.10146234]
[1752865868250,0.06,177.13,177.12,60.78146234]
[1752865868578,0.06,177.13,177.12,37.79677837]
[1752865868947,0.06,177.13,177.12,38.47677837]
[1752865869672,0.06,177.13,177.12,60.90735213]
[1752865871450,0.06,177.13,177.12,49.11057376]
[1752865871648,0.06,177.13,177.12,60.90735213]
[1752865873449,0.06,177.13,177.12,49.11057376]
[1752865873653,0.06,177.13,177.12,60.90735213]
[1752865874881,0.06,177.13,177.12,49.11057376]
[1752865875072,0.06,177.13,177.12,60.90735213]
[1752865875620,0.06,177.13,177.12,61.4719411]
[1752865875780,0.06,177.13,177.12,60.90735213]
[1752865876455,0.06,177.17,177.16,42.78468397]
[1752865876661,0.06,177.17,177.16,86.04146234]
[1752865876978,0.06,177.17,177.16,86.72146234]
[1752865878464,0.06,177.17,177.16,92.36607737]
[1752865878958,0.06,177.17,177.16,91.68607737]
[1752865879161,0.06,177.17,177.13,0.68]
[1752865879375,0.06,177.17,177.16,11.79677837]
[1752865879569,0.06,177.17,177.16,12.47677837]
[1752865880291,0.06,177.17,177.16,60.70146234]
[1752865880489,0.06,177.17,177.16,66.34607737]
[1752865880670,0.06,177.17,177.16,92.34607737]
[1752865880878,0.06,177.17,177.16,92.91053887]
[1752865881093,0.06,177.17,177.16,92.34607737]
[1752865882698,0.06,177.17,177.16,80.549299]
[1752865882892,0.06,177.17,177.16,92.34607737]
[1752865884299,0.06,177.17,177.16,37.79677837]
[1752865884474,0.06,177.17,177.16,31.42]
[1752865884668,0.06,177.17,177.16,43.21677837]
[1752865885069,0.06,177.17,177.16,66.32607737]
[1752865885609,0.06,177.17,177.15,26.0]
[1752865885902,0.06,177.17,177.16,31.42]
[1752865886066,0.72,177.17,177.16,31.42]
[1752865886268,0.06,177.17,177.16,31.42]
[1752865886670,0.06,177.17,177.16,43.21677837]
[1752865887383,0.06,177.17,177.16,31.42]
[1752865887800,0.72,177.17,177.16,31.42]
[1752865888187,0.06,177.17,177.16,43.21677837]
[1752865888387,0.06,177.17,177.16,49.5413934]
[1752865888585,0.06,177.17,177.16,43.21677837]
[1752865889405,0.06,177.17,177.16,31.42]
[1752865889587,0.06,177.17,177.16,43.21677837]
[1752865889990,0.72,177.17,177.16,31.42]
[1752865890485,0.72,177.17,177.12,0.03]
[1752865890486,0.72,177.17,177.15,31.4]
[1752865890695,0.06,177.17,177.15,43.19677837]
[1752865891103,0.72,177.17,177.15,31.4]
[1752865891305,0.06,177.17,177.15,37.04486719]
[1752865891487,0.06,177.17,177.15,31.4]
[1752865891689,0.72,177.17,177.15,31.4]
[1752865892200,0.06,177.17,177.15,31.4]
[1752865892389,0.06,177.17,177.15,43.19677837]
[1752865892709,0.06,177.17,177.15,31.4]
[1752865893210,0.72,177.17,177.15,31.4]
[1752865893917,0.72,177.17,177.16,11.79677837]
[1752865893918,0.06,177.17,177.16,11.79677837]
[1752865895614,0.06,177.17,177.16,17.4413934]
[1752865897005,0.06,177.17,177.16,11.79677837]
[1752865897527,0.06,177.17,177.16,17.4413934]
[1752865898618,0.06,177.17,177.16,11.79677837]
[1752865899321,0.72,177.17,177.14,26.0]
[1752865899523,0.66,177.16,177.15,31.36]
[1752865899816,12.45677837,177.16,177.14,31.36]
[1752865900012,0.66,177.15,177.14,31.36]
[1752865900206,0.06,177.17,177.14,31.36]
[1752865900513,0.72,177.17,177.14,31.36]
[1752865902019,0.72,177.17,177.12,5.67580521]
[1752865902020,11.79677837,177.15,177.12,0.03]
[1752865902207,11.79677837,177.15,177.13,31.36]
[1752865902208,0.66,177.14,177.13,31.36]
[1752865902559,0.66,177.14,177.06,17.46468397]
[1752865902560,12.02997104,177.13,177.04,0.03]
[1752865902740,11.79677837,177.05,177.04,0.03]
[1752865903099,18.84117837,177.05,177.04,0.03]
[1752865903418,18.84117837,177.05,176.97,31.36]
[1752865903612,0.66,177.04,176.98,11.82677837]
[1752865903815,11.79677837,177.02,176.98,0.03]
[1752865904145,0.66,177.01,176.98,11.82677837]
[1752865904505,11.79677837,177.02,176.98,0.03]
[1752865904703,12.45677837,177.0,176.98,0.03]
[1752865904939,0.66,177.0,176.98,0.03]
[1752865905304,0.66,176.99,176.98,0.03]
[1752865905503,11.79677837,177.01,176.98,0.03]
[1752865905704,0.68,177.0,176.98,0.03]
[1752865906409,11.79677837,177.01,176.98,0.03]
[1752865906410,2.3232,177.03,176.98,11.82677837]
[1752865906748,18.86117837,177.05,177.0,11.79677837]
[1752865906954,7.0644,177.05,177.02,11.79677837]
[1752865907267,6.3844,177.05,177.01,11.79677837]
[1752865907427,7.0644,177.05,177.01,11.79677837]
[1752865907629,0.68,177.04,177.01,11.79677837]
[1752865908831,0.68,177.04,176.99,31.36]
[1752865909026,0.68,177.04,177.01,11.79677837]
[1752865909351,6.3844,177.05,176.98,6.39021113]
[1752865909352,11.79677837,177.02,176.98,0.03]
[1752865909518,11.79677837,177.01,176.98,0.03]
[1752865909721,0.68,177.01,176.98,0.03]
[1752865910038,5.64856829,177.04,176.98,11.82677837]
[1752865910255,12.47677837,177.03,176.98,17.47705844]
[1752865910462,0.68,177.06,177.02,11.79677837]
[1752865910681,0.68,177.05,177.02,11.79677837]
[1752865910824,11.79677837,177.06,176.99,31.34]
[1752865911032,11.79677837,177.02,176.98,0.03]
[1752865911249,0.68,177.04,176.98,0.03]
[1752865911250,11.79677837,177.01,176.98,0.03]
[1752865911434,0.68,177.0,176.98,0.03]
[1752865911641,11.79677837,176.99,176.98,0.03]
[1752865911953,6.3411,176.99,176.98,0.03]
[1752865912126,18.81787837,176.99,176.98,0.03]
[1752865912523,12.67113672,176.99,176.98,0.03]
[1752865912741,24.46791509,176.99,176.98,0.03]
[1752865915947,26.05351509,176.99,176.98,0.03]
[1752865917975,80.63497743,176.99,176.98,1e-08]
[1752865918185,26.0,176.97,176.96,0.03]
[1752865918476,69.13677837,176.97,176.96,0.03]
[1752865918687,69.81677837,176.97,176.96,0.03]
[1752865919169,69.79677837,176.97,176.96,0.03]
[1752865919685,75.44745362,176.97,176.96,0.03]
[1752865919866,49.44745362,176.97,176.96,0.03]
[1752865921486,18.12745362,176.97,176.96,0.03]
[1752865921688,11.99144681,176.99,176.96,0.03]
[1752865922083,12.47677837,176.98,176.96,0.03]
[1752865922274,11.79677837,176.97,176.96,0.03]
[1752865922474,12.47677837,176.97,176.96,0.03]
[1752865922979,43.79677837,176.97,176.96,0.03]
[1752865923202,43.79677837,176.97,176.94,0.1]
[1752865923494,90.38,176.96,176.94,0.1]
[1752865923706,102.17677837,176.96,176.94,0.1]
[1752865923874,107.82803986,176.96,176.94,0.1]
[1752865924204,0.68,176.95,176.94,0.1]
[1752865924770,43.79677837,176.95,176.94,0.1]
[1752865925975,37.65131393,176.95,176.94,0.1]
[1752865926276,49.4480923,176.95,176.94,0.1]
[1752865926468,18.1280923,176.95,176.94,0.1]
[1752865926672,5.65103691,176.96,176.94,0.1]
[1752865926902,102.17677837,176.97,176.94,0.1]
[1752865927109,101.49677837,176.97,176.94,0.1]
[1752865927572,11.79677837,176.95,176.94,0.1]
[1752865927981,12.47677837,176.95,176.94,0.1]
[1752865928200,18.1280923,176.95,176.94,0.1]
[1752865929621,18.1280923,176.95,176.94,1e-08]
[1752865929794,6.3911,176.91,176.9,1e-08]
[1752865929993,6.3911,176.91,176.86,0.1]
[1752865929994,49.48787837,176.91,176.86,0.1]
[1752865930226,11.79677837,176.87,176.86,0.1]
[1752865930434,43.09677837,176.87,176.86,0.1]
[1752865930906,43.77677837,176.87,176.86,0.1]
[1752865931690,31.98,176.87,176.86,0.1]
[1752865932018,12.47677837,176.87,176.86,0.1]
[1752865932193,49.43064844,176.87,176.86,0.1]
[1752865932911,50.96204844,176.87,176.86,0.1]
[1752865933132,39.16527007,176.87,176.86,0.1]
[1752865933303,49.43064844,176.87,176.86,0.1]
[1752865933629,49.43064844,176.87,176.85,0.1]
[1752865933805,26.0,176.82,176.8,0.1]
[1752865934007,43.09677837,176.81,176.8,0.1]
[1752865934214,49.43256706,176.81,176.8,0.1]
[1752865934711,40.48964159,176.81,176.8,0.1]
[1752865934910,52.28641996,176.81,176.8,0.1]
[1752865935107,9.18964159,176.81,176.8,0.1]
[1752865935309,20.30641996,176.81,176.8,0.1]
[1752865936033,30.91930639,176.88,176.8,0.1]
[1752865936342,11.79677837,176.85,176.8,12.56677837]
[1752865936550,20.33973204,176.85,176.8,12.56677837]
[1752865936840,12.49677837,176.84,176.8,11.89677837]
[1752865937754,0.7,176.83,176.8,0.1]
[1752865937908,31.3,176.84,176.8,11.89677837]
[1752865938114,5.65514901,176.83,176.8,11.89677837]
[1752865938947,2.8884442,176.85,176.82,11.79677837]
[1752865939105,1.586,176.9,176.8,0.1]
[1752865939106,0.7,176.84,176.8,0.1]
[1752865939614,2.82051816,176.85,176.82,11.79677837]
[1752865939919,1.586,176.9,176.82,11.79677837]
[1752865939920,5.65384151,176.88,176.82,11.79677837]
[1752865940110,5.65291124,176.9,176.86,11.79677837]
[1752865940435,6.35291124,176.9,176.86,11.79677837]
[1752865940622,6.35291124,176.9,176.85,11.79677837]